bitfinex-derivatives/quotes_ETHF0:USTF0_20250627
["timestamp","ask_amount","ask_price","bid_price","bid_amount"]
[1751044093676,0.82578,2421.1,2421.0,35.2135]
[1751044094374,0.82578,2421.1,2421.0,36.03932]
[1751044094574,0.82578,2421.1,2421.0,35.2135]
[1751044094774,0.82582,2421.0,2420.9,3.2078]
[1751044095078,2.06192642,2421.0,2420.9,3.2078]
[1751044095279,6.47262642,2421.0,2420.9,3.2078]
[1751044096685,3.83752,2421.0,2420.9,3.2078]
[1751044097070,5.07529662,2421.0,2420.9,3.2078]
[1751044097572,16.89263296,2421.0,2420.1,7.057]
[1751044097778,16.89263296,2421.0,2420.1,7.8831]
[1751044097779,0.82606,2420.3,2420.1,7.8831]
[1751044097974,1.52589,2420.2,2420.1,7.8831]
[1751044098181,1.52589,2420.2,2420.1,7.057]
[1751044098686,0.6998,2420.2,2420.1,7.057]
[1751044098988,5.07626,2421.0,2420.1,42.54863272]
[1751044099182,0.6783,2420.8,2420.7,4.03372]
[1751044099383,0.82589,2420.8,2420.7,0.82592]
[1751044099582,0.82589,2420.8,2420.7,2.89042]
[1751044099778,0.82588,2420.9,2420.7,2.0645]
[1751044099984,1.50413,2421.0,2420.8,2.89039]
[1751044100176,2.06303191,2420.9,2420.8,2.89039]
[1751044100376,6.23018191,2420.9,2420.8,2.89039]
[1751044100576,7.05603191,2420.9,2420.8,2.0645]
[1751044100986,7.05603191,2420.9,2420.8,2.89039]
[1751044101186,6.23018191,2420.9,2420.8,2.0645]
[1751044101383,6.23018191,2420.9,2420.8,2.89039]
[1751044101780,4.993,2420.9,2420.8,2.89039]
[1751044103581,4.993,2420.9,2420.8,7.89039]
[1751044103787,0.82581,2421.1,2420.8,36.71939]
[1751044103983,0.82581,2421.1,2420.9,0.82585]
[1751044104284,0.82581,2421.1,2421.0,35.2055]
[1751044104490,2.06288826,2421.1,2421.0,35.2055]
[1751044104694,7.05588826,2421.1,2421.0,33.141]
[1751044104881,6.23007826,2421.1,2420.7,3.2078]
[1751044105081,0.82589,2420.8,2420.7,3.2078]
[1751044105894,2.5732,2420.9,2420.4,4.03381]
[1751044106086,0.82599,2420.5,2420.4,5.2723]
[1751044106281,0.82599,2420.5,2420.4,37.18882]
[1751044106486,1.54218,2420.6,2420.4,37.18882]
[1751044106790,1.54218,2420.6,2420.4,39.25332]
[1751044106984,0.82599,2420.5,2420.4,36.3628]
[1751044107186,0.82599,2420.5,2420.4,3.2078]
[1751044107585,0.82602,2420.4,2420.3,7.058]
[1751044107891,0.82607,2420.3,2420.2,26.91708]
[1751044108080,0.82607,2420.3,2420.2,2.0645]
[1751044108286,0.82607,2420.3,2420.1,37.1859]
[1751044108486,0.82607,2420.3,2420.2,2.0645]
[1751044108681,0.82607,2420.3,2420.2,2.89059]
[1751044108682,2.22617,2420.3,2420.2,2.89059]
[1751044108886,2.22617,2420.3,2420.2,0.82609]
[1751044109493,2.22616,2420.3,2420.1,36.3598]
[1751044109694,1.52744,2420.4,2420.2,2.89059]
[1751044109893,0.82606,2420.3,2420.2,2.89059]
[1751044110194,0.82606,2420.3,2420.2,2.0645]
[1751044110495,0.82606,2420.3,2420.2,2.89059]
[1751044110996,0.82606,2420.3,2420.2,2.0645]
[1751044111492,2.22616,2420.3,2420.2,2.0645]
[1751044111694,0.82609,2420.2,2420.1,36.3278]
[1751044111897,2.93619,2420.2,2420.1,36.3278]
[1751044112288,2.93619,2420.2,2420.1,3.2078]
[1751044112693,6.55519,2420.2,2420.1,4.03392]
[1751044112896,5.7291,2420.2,2420.1,6.09842]
[1751044113095,4.993,2420.2,2420.1,7.53002]
[1751044113392,4.993,2420.2,2420.1,19.87215272]
[1751044113594,4.993,2420.2,2420.1,20.58865272]
[1751044114394,4.993,2420.2,2420.1,6.09842]
[1751044114599,4.993,2420.2,2420.1,34.30012]
[1751044115993,4.993,2420.2,2420.1,39.30012]
[1751044116390,0.82593,2420.7,2420.5,0.82596]
[1751044116586,2.06218092,2420.6,2420.5,10.2608]
[1751044116785,0.82595,2420.6,2420.5,36.3918]
[1751044116998,1.06305,2420.6,2420.5,38.4563]
[1751044117197,0.2371,2420.6,2420.5,39.28229]
[1751044117394,1.06305,2420.6,2420.5,38.4563]
[1751044117596,0.2371,2420.6,2420.5,39.28229]
[1751044119095,0.82589,2420.8,2420.7,0.82592]
[1751044119289,0.82589,2420.8,2420.7,26.105]
[1751044119494,7.05520842,2420.8,2420.7,28.1695]
[1751044119693,7.05520842,2420.8,2420.7,28.99542]
[1751044119694,6.22931842,2420.8,2420.7,28.99542]
[1751044120199,4.993,2420.8,2420.7,28.99542]
[1751044120602,6.22941209,2420.8,2420.7,28.99542]
[1751044121893,4.993,2420.8,2420.7,32.20322]
[1751044122705,4.993,2420.8,2420.7,30.13872]
[1751044122905,4.993,2420.8,2420.7,32.20322]
[1751044123803,5.81889,2420.8,2420.7,5.2723]
[1751044124003,5.81889,2420.8,2420.7,12.3253]
[1751044124204,5.81889,2420.8,2420.7,38.4093]
[1751044124607,5.81889,2420.8,2420.7,36.3448]
[1751044125005,5.81889,2420.8,2420.7,3.2078]
[1751044125207,5.81889,2420.8,2420.7,36.3368]
[1751044125710,7.05714274,2420.8,2420.7,3.2078]
[1751044125906,7.05714274,2420.8,2420.4,4.03381]
[1751044125907,0.82599,2420.5,2420.4,4.03381]
[1751044126206,0.82599,2420.5,2420.4,12.3253]
[1751044126407,0.82599,2420.5,2420.4,7.053]
[1751044126709,2.77239,2420.5,2420.4,33.122]
[1751044127398,2.77239,2420.5,2420.4,35.1865]
[1751044127598,2.77239,2420.5,2420.4,33.122]
[1751044127910,4.01063174,2420.5,2420.4,33.122]
[1751044128107,0.82609,2420.2,2420.1,4.0339]
[1751044128409,0.82609,2420.2,2420.1,3.2078]
[1751044128604,0.82609,2420.2,2420.1,38.4163]
[1751044128806,0.82609,2420.2,2420.1,38.4153]
[1751044129116,0.82609,2420.2,2420.1,39.24142]
[1751044129415,5.81909,2420.2,2420.1,39.24042]
[1751044129616,4.993,2420.2,2420.1,6.09842]
[1751044129816,4.993,2420.2,2420.1,39.23142]
[1751044130814,5.81909,2420.2,2420.1,39.23142]
[1751044131015,5.81909,2420.2,2420.1,38.4053]
[1751044131517,5.81909,2420.2,2420.1,5.2723]
[1751044131718,5.81909,2420.2,2420.1,38.3943]
[1751044131907,5.81909,2420.2,2420.1,9.1175]
[1751044132111,0.8263,2419.6,2419.5,3.2078]
[1751044132509,5.27337,2419.9,2419.5,5.2723]
[1751044132510,3.2078,2419.9,2419.5,5.2723]
[1751044132709,0.82628,2419.7,2419.6,2.0645]
[1751044132915,8.2008,2419.9,2419.5,29.3198]
[1751044132916,0.8263,2419.6,2419.5,29.3198]
[1751044133110,1.4978,2419.6,2419.5,3.2078]
[1751044133511,1.4978,2419.6,2419.5,4.03413]
[1751044133717,1.4978,2419.6,2419.5,29.3328]
[1751044133918,1.4978,2419.6,2419.5,3.2078]
[1751044134317,2.73607074,2419.6,2419.5,29.3288]
[1751044134518,7.72907074,2419.6,2419.5,29.3288]
[1751044134819,6.90277074,2419.6,2419.5,32.21963]
[1751044135212,6.23127074,2419.6,2419.5,32.21963]
[1751044135418,4.993,2419.6,2419.5,32.21963]
[1751044135617,1.2375687,2419.6,2419.5,37.21963]
[1751044135818,1.2375687,2419.6,2419.5,38.62503]
[1751044136623,0.0171,2419.9,2419.8,0.82623]
[1751044136825,0.0171,2419.9,2419.8,39.28753]
[1751044137016,1.25428742,2419.9,2419.8,39.28753]
[1751044137220,1.23718742,2419.9,2419.8,46.42893]
[1751044137520,2.28732,2420.5,2420.2,0.82606]
[1751044137728,1.23695808,2420.4,2420.3,36.3908]
[1751044137919,6.22995808,2420.4,2420.3,36.3908]
[1751044138225,6.22995808,2420.4,2420.3,39.28136]
[1751044141122,7.61025808,2420.4,2420.3,6.09836]
[1751044141326,7.61025808,2420.4,2420.3,39.26336]
[1751044141526,7.61025808,2420.4,2420.3,39.24736]
[1751044141728,7.61025808,2420.4,2420.3,6.09836]
[1751044141922,6.22995808,2420.4,2420.3,6.09836]
[1751044142226,4.993,2420.4,2420.3,39.24036]
[1751044142719,4.993,2420.4,2420.1,26.082]
[1751044142720,0.82609,2420.2,2420.1,26.082]
[1751044142920,0.82612,2420.1,2420.0,2.0645]
[1751044143118,0.7355,2420.1,2420.0,26.089]
[1751044143419,1.56162,2420.1,2420.0,26.089]
[1751044143621,4.40042,2420.1,2420.0,26.91516]
[1751044143815,4.40042,2420.1,2420.0,26.089]
[1751044144020,0.82616,2420.0,2419.9,33.96817]
[1751044144229,1.3362,2420.0,2419.9,33.96817]
[1751044145322,3.5743,2420.1,2420.0,0.82616]
[1751044145515,3.5743,2420.1,2420.0,2.89066]
[1751044146123,2.8388,2420.1,2420.0,2.89066]
[1751044147218,2.8388,2420.1,2420.0,4.35846]
[1751044149531,2.8388,2420.1,2420.0,2.89066]
[1751044151325,2.8388,2420.1,2420.0,4.27196]
[1751044152624,2.8388,2420.1,2420.0,2.20746]
[1751044152824,2.8388,2420.1,2420.0,4.27196]
[1751044154129,2.8388,2420.1,2420.0,36.01066]
[1751044156235,2.8388,2420.1,2420.0,9.91866]
[1751044156432,2.8388,2420.1,2420.0,35.97566]
[1751044156832,2.8388,2420.1,2420.0,2.89066]
[1751044157033,2.8388,2420.1,2420.0,35.96966]
[1751044158431,2.8388,2420.1,2420.0,2.89066]
[1751044158631,2.8388,2420.1,2420.0,35.97066]
[1751044160432,2.8388,2420.1,2420.0,40.97066]
[1751044160638,0.695,2420.7,2420.6,0.82595]
[1751044160838,1.93345134,2420.7,2420.6,26.83895]
[1751044161132,1.23845134,2420.7,2420.6,28.90345]
[1751044161338,0.695,2421.1,2421.0,0.82582]
[1751044161534,0.695,2421.1,2421.0,35.94032]
[1751044161736,1.23878603,2421.1,2421.0,35.94032]
[1751044162041,1.3804,2421.4,2421.3,0.82572]
[1751044162240,1.933123,2421.4,2421.3,28.92322]
[1751044162838,0.695,2421.4,2421.3,28.92322]
[1751044163034,2.92128,2421.7,2421.4,0.82568]
[1751044163338,1.23725637,2421.6,2421.5,28.91615]
[1751044163540,5.35315637,2421.6,2421.5,26.85165]
[1751044163740,5.35315637,2421.6,2421.5,30.05945]
[1751044164238,4.1159,2421.6,2421.5,30.05945]
[1751044164440,4.1159,2421.6,2421.5,32.12395]
[1751044165238,1.4405,2422.0,2421.9,0.82551]
[1751044165438,1.4405,2422.0,2421.9,26.83251]
[1751044165638,1.5641,2422.0,2421.9,26.83251]
[1751044166337,0.1236,2422.0,2421.9,26.83251]
[1751044166542,0.1236,2422.0,2421.9,28.89701]
[1751044167142,0.1236,2422.0,2421.9,31.02671]
[1751044167536,7.5317844,2422.3,2422.2,0.82541]
[1751044167732,4.1159,2422.3,2422.2,35.92191]
[1751044168437,4.1159,2422.3,2422.2,2.0645]
[1751044168643,4.1159,2422.3,2422.1,4.03323]
[1751044168844,4.1159,2422.3,2422.2,33.86641]
[1751044169338,4.1159,2422.3,2422.2,33.041]
[1751044169539,4.1159,2422.3,2422.2,33.86641]
[1751044170138,4.1159,2422.3,2422.2,35.93091]
[1751044171444,4.1159,2422.3,2422.2,2.0645]
[1751044171647,4.94127,2422.3,2422.2,26.019]
[1751044171946,0.82537,2422.3,2422.2,26.019]
[1751044172241,2.0621,2422.6,2422.2,26.019]
[1751044172445,4.9959,2422.3,2422.2,26.84441]
[1751044172742,0.82531,2422.5,2422.4,2.0645]
[1751044172945,0.82531,2422.5,2422.4,35.1295]
[1751044173140,6.349,2422.5,2422.4,33.89034]
[1751044173644,6.349,2422.5,2422.4,35.95484]
[1751044173645,4.9959,2422.5,2422.4,35.95484]
[1751044175747,4.03305,2422.7,2422.5,0.82529]
[1751044175948,5.82117,2422.6,2422.4,7.025]
[1751044176145,5.82117,2422.6,2422.5,26.01]
[1751044176447,5.82117,2422.6,2422.5,28.0745]
[1751044176644,0.82534,2422.4,2422.3,0.82536]
[1751044176844,0.82533,2422.5,2422.4,2.0645]
[1751044177044,0.82533,2422.5,2422.4,2.88984]
[1751044177243,7.24269,2422.6,2422.5,0.82531]
[1751044177454,7.24269,2422.6,2422.5,25.998]
[1751044178149,7.24269,2422.6,2422.5,26.82331]
[1751044178447,7.24269,2422.6,2422.5,25.998]
[1751044178749,5.82119,2422.6,2422.5,26.82331]
[1751044179346,5.82119,2422.6,2422.5,25.998]
[1751044179849,7.28209,2422.6,2422.5,25.998]
[1751044180849,0.82537,2422.3,2422.2,41.5174]
[1751044181048,0.82534,2422.5,2422.4,2.0645]
[1751044181250,0.82534,2422.5,2422.4,28.0225]
[1751044181451,7.2821,2422.6,2422.5,0.82531]
[1751044181652,4.9959,2422.6,2422.5,0.82531]
[1751044182146,4.9959,2422.6,2422.5,2.88981]
[1751044185952,1.4116,2422.9,2422.8,0.8252]
[1751044186155,1.4116,2422.9,2422.8,33.7132]
[1751044186353,7.23267,2422.9,2422.8,32.888]
[1751044186859,6.4075,2422.9,2422.8,33.7132]
[1751044187160,7.23267,2422.9,2422.8,32.888]
[1751044187463,5.6804,2422.9,2422.8,35.7777]
[1751044187751,0.6845,2422.9,2422.8,35.7777]
[1751044187956,4.9959,2423.0,2422.9,0.82517]
[1751044188157,4.9959,2423.0,2422.9,2.88967]
[1751044188454,0.699,2423.3,2423.2,0.82507]
[1751044188656,6.91958885,2423.3,2423.2,38.98237]
[1751044189757,6.22058885,2423.3,2423.2,38.98237]
[1751044190959,6.22058885,2423.3,2423.2,38.96137]
[1751044193355,1.22468885,2423.3,2423.2,40.41877]
[1751044194263,3.64967294,2423.3,2423.2,38.96137]
[1751044194559,1.22468885,2423.3,2423.2,38.96137]
[1751044194959,1.22468885,2423.3,2423.2,6.09737]
[1751044195260,1.22468885,2423.3,2423.2,38.94137]
[1751044195751,2.04971885,2423.3,2423.2,32.832]
[1751044195951,5.94620294,2423.3,2423.2,32.832]
[1751044196156,2.69618885,2423.3,2423.2,33.65707]
[1751044196951,1.22468885,2423.3,2423.2,36.86487]
[1751044197155,1.22468885,2423.3,2423.2,38.92937]
[1751044197764,1.22468885,2423.3,2423.2,46.27150272]
[1751044198858,1.22468885,2423.3,2423.2,51.27150272]
[1751044199365,5.63278409,2424.0,2423.3,2.06259]
[1751044199567,5.82073,2423.9,2423.8,2.0645]
[1751044199762,5.82073,2423.9,2423.8,34.8955]
[1751044199966,4.9959,2423.9,2423.8,33.65586]
[1751044201158,4.9959,2423.9,2423.6,3.2078]
[1751044201463,3.27112269,2423.7,2423.6,3.2078]
[1751044201657,2.44622269,2423.7,2423.6,36.85973]
[1751044202058,8.26701269,2423.8,2423.6,36.85973]
[1751044202258,1.3686,2423.7,2423.6,36.85973]
[1751044203057,0.8249,2423.7,2423.6,3.2078]
[1751044203265,0.8249,2423.7,2423.6,36.0348]
[1751044203561,7.2148,2423.7,2423.6,6.972]
[1751044203768,6.3899,2423.7,2423.6,33.65193]
[1751044204166,4.9959,2423.7,2423.6,33.65193]
[1751044205063,4.9959,2423.7,2423.6,35.71643]
[1751044205261,4.9959,2423.7,2423.6,37.84153]
[1751044205864,1.4124,2424.1,2424.0,0.8248]
[1751044206064,1.4124,2424.1,2424.0,33.6498]
[1751044206259,5.1438,2424.1,2424.0,33.6498]
[1751044207177,3.7314,2424.1,2424.0,35.7143]
[1751044207566,4.55616,2424.1,2423.9,4.03263]
[1751044207867,3.7314,2424.1,2424.0,33.5738]
[1751044208466,5.1677,2424.1,2424.0,33.5738]
[1751044209564,5.99246,2424.1,2424.0,33.5738]
[1751044209870,5.99246,2424.1,2424.0,32.749]
[1751044210069,5.1677,2424.1,2424.0,33.5738]
[1751044210261,5.99246,2424.1,2424.0,32.749]
[1751044210462,0.8248,2424.0,2423.9,3.2078]
[1751044210672,0.82489,2423.8,2423.7,32.746]
[1751044211067,3.67402,2424.0,2423.8,0.82485]
[1751044211268,1.2109773,2423.9,2423.8,0.82485]
[1751044211469,2.0358073,2423.9,2423.8,0.82485]
[1751044211668,1.2109773,2423.9,2423.8,33.57085]
[1751044212166,1.2109773,2423.9,2423.8,35.63535]
[1751044212964,1.2109773,2423.9,2423.8,42.97748272]
[1751044213170,0.6777,2424.0,2423.9,0.82483]
[1751044213371,2.71370757,2424.0,2423.9,5.2723]
[1751044213577,5.20060757,2424.0,2423.9,3.2078]
[1751044213775,5.20060757,2424.0,2423.9,32.745]
[1751044214172,3.9894,2424.0,2423.9,32.745]
[1751044214871,3.9894,2424.0,2423.9,33.56983]
[1751044215074,3.1646,2424.0,2423.9,33.56983]
[1751044215380,3.9894,2424.0,2423.9,33.56983]
[1751044215581,3.1646,2424.0,2423.9,33.56983]
[1751044216078,3.9894,2424.0,2423.9,33.56983]
[1751044216379,3.9894,2424.0,2423.9,32.745]
[1751044216773,0.8249,2423.8,2423.7,0.82489]
[1751044217079,0.8249,2423.8,2423.7,35.63339]
[1751044217281,0.8249,2423.8,2423.7,33.56889]
[1751044218278,0.8249,2423.8,2423.7,0.82489]
[1751044218473,0.8249,2423.8,2423.7,33.56889]
[1751044219383,0.8249,2423.8,2423.7,32.744]
[1751044219982,0.8249,2423.8,2423.7,6.896]
[1751044220186,0.8249,2423.7,2423.6,10.1038]
[1751044220482,2.9462,2423.7,2423.6,35.9508]
[1751044220781,2.9462,2423.7,2423.6,29.0548]
[1751044221082,7.9421,2423.7,2423.6,29.87973]
[1751044221478,7.9421,2423.7,2423.6,29.0548]
[1751044222082,0.82493,2423.6,2423.5,6.896]
[1751044222281,2.91623,2423.6,2423.5,35.63247]
[1751044222493,2.91623,2423.6,2423.5,34.8075]
[1751044223185,2.91623,2423.6,2423.5,35.63247]
[1751044223586,2.91623,2423.6,2423.5,34.8075]
[1751044223889,2.91623,2423.6,2423.5,35.63247]
[1751044224387,2.91623,2423.6,2423.5,34.8075]
[1751044224589,0.825,2423.4,2423.3,1.5375]
[1751044224791,0.82503,2423.3,2423.2,3.2078]
[1751044225085,2.0913,2423.6,2423.3,2.0645]
[1751044225290,0.82499,2423.5,2423.4,26.67098]
[1751044225685,0.82499,2423.5,2423.4,25.846]
[1751044225881,5.82089,2423.5,2423.4,25.846]
[1751044226283,7.20329,2423.5,2423.4,25.846]
[1751044227384,0.82503,2423.3,2423.2,10.1038]
[1751044227585,0.82503,2423.3,2423.2,35.9498]
[1751044227785,0.82503,2423.3,2423.2,38.0143]
[1751044227986,0.82503,2423.3,2423.2,38.83937]
[1751044228389,0.82503,2423.3,2423.2,38.0143]
[1751044229591,0.82503,2423.3,2423.2,38.83937]
[1751044230594,0.82503,2423.3,2423.2,3.2078]
[1751044230791,0.82507,2423.2,2423.1,0.82508]
[1751044231092,0.82514,2423.1,2423.0,0.82512]
[1751044231292,0.8251,2423.1,2423.0,2.0645]
[1751044231487,0.8251,2423.1,2423.0,34.8065]
[1751044231689,0.8251,2423.1,2423.0,35.63164]
[1751044232090,0.8251,2423.1,2423.0,34.8065]
[1751044232292,0.8251,2423.1,2423.0,35.63164]
[1751044232501,0.8251,2423.1,2423.0,34.8065]
[1751044232794,1.5336,2423.1,2423.0,32.742]
[1751044233289,0.82517,2422.9,2422.8,43.588]
[1751044233493,0.82515,2423.0,2422.9,0.82516]
[1751044233887,0.82517,2422.9,2422.8,77.15419]
[1751044234189,0.7085,2423.1,2422.8,76.329]
[1751044234391,0.7085,2423.1,2423.0,0.82514]
[1751044234693,0.7085,2423.1,2423.0,26.66914]
[1751044234989,4.9959,2423.2,2423.1,0.8251]
[1751044235188,0.82491,2423.7,2423.1,2.0645]
[1751044235394,0.7085,2423.8,2423.7,0.8249]
[1751044235594,1.91979936,2423.8,2423.7,0.8249]
[1751044235989,0.8249,2423.7,2423.6,25.843]
[1751044236187,2.0361923,2423.7,2423.6,25.843]
[1751044236595,1.2112923,2423.7,2423.6,26.66793]
[1751044237994,2.0361923,2423.7,2423.6,26.66793]
[1751044238499,0.8249,2423.7,2423.6,26.66793]
[1751044238696,6.52928,2423.8,2423.7,0.8249]
[1751044238897,5.7044,2423.8,2423.7,0.8249]
[1751044239395,6.916033,2423.8,2423.7,0.8249]
[1751044239591,6.207533,2423.8,2423.7,2.8894]
[1751044239997,7.032393,2423.8,2423.7,2.0645]
[1751044241899,7.032393,2423.8,2423.7,2.8894]
[1751044242699,7.032393,2423.8,2423.7,0.8249]
[1751044242998,7.032393,2423.8,2423.7,2.0645]
[1751044245101,7.032393,2423.8,2423.7,2.8894]
[1751044245998,6.207533,2423.8,2423.7,2.8894]
[1751044246586,7.032393,2423.8,2423.7,2.8894]
[1751044246798,7.032393,2423.8,2423.7,2.0645]
[1751044247390,0.8249,2423.7,2423.6,32.734]
[1751044247591,0.8249,2423.7,2423.6,34.7985]
[1751044248095,2.03208956,2423.7,2423.6,32.734]
[1751044249104,2.06235,2423.6,2423.3,6.891]
[1751044249296,1.51077,2423.5,2423.4,25.834]
[1751044249497,2.89527,2423.5,2423.4,25.834]
[1751044251495,4.10257621,2423.5,2423.4,25.834]
[1751044251803,2.89527,2423.5,2423.4,25.834]
[1751044252699,0.825,2423.4,2423.3,6.891]
[1751044252905,2.1937,2423.4,2423.3,32.724]
[1751044253605,2.1937,2423.4,2423.3,6.891]
[1751044253804,2.1937,2423.4,2423.3,32.722]
[1751044255202,2.1937,2423.4,2423.3,6.891]
[1751044255407,2.1937,2423.4,2423.3,32.721]
[1751044256209,0.825,2423.4,2423.3,32.721]
[1751044256408,0.825,2423.4,2423.3,33.54603]
[1751044256609,0.825,2423.4,2423.3,32.721]
[1751044257110,2.06268,2423.2,2422.7,7.71621]
[1751044257408,0.82519,2422.9,2422.8,26.65419]
[1751044257605,0.82519,2422.9,2422.8,25.829]
[1751044258403,0.8252,2422.8,2422.7,6.891]
[1751044258811,2.2389,2422.8,2422.7,6.891]
[1751044259010,0.82524,2422.7,2422.6,25.828]
[1751044259210,1.54734,2422.7,2422.6,25.828]
[1751044259411,0.82527,2422.6,2422.5,4.71141]
[1751044259611,0.82527,2422.6,2422.5,30.53941]
[1751044259802,0.82527,2422.6,2422.5,29.7141]
[1751044260011,0.82527,2422.6,2422.5,0.6783]
[1751044260218,0.82527,2422.6,2422.5,26.5073]
[1751044260521,5.82117,2422.6,2422.5,27.33261]
[1751044260722,4.9959,2422.6,2422.5,27.8935]
[1751044261124,5.82117,2422.6,2422.5,27.8935]
[1751044262224,5.82117,2422.6,2422.5,28.71881]
[1751044262424,4.9959,2422.6,2422.5,28.71881]
[1751044264723,5.82117,2422.6,2422.5,28.71881]
[1751044265222,5.82117,2422.6,2422.5,27.8935]
[1751044265524,5.82117,2422.6,2422.5,27.8915]
[1751044265721,0.82531,2422.5,2422.4,6.892]
[1751044265921,0.82531,2422.5,2422.4,32.718]
[1751044266322,2.24501,2422.5,2422.4,32.718]
[1751044266729,0.82537,2422.3,2422.2,3.8916]
[1751044266923,2.06353,2422.2,2421.7,0.32568671]
[1751044267125,7.84737647,2421.8,2421.7,0.32568671]
[1751044267627,7.84737647,2421.8,2421.2,9.83863]
[1751044267628,0.82569,2421.4,2421.3,25.826]
[1751044267818,4.63967647,2421.6,2421.5,0.82565]
[1751044268020,0.82565,2421.5,2421.4,2.0645]
[1751044268919,0.82565,2421.5,2421.4,2.89018]
[1751044269922,0.82565,2421.5,2421.4,2.0645]
[1751044271727,0.82568,2421.4,2421.3,25.826]
[1751044271926,0.82566,2421.5,2421.4,2.0645]
[1751044272528,0.82567,2421.5,2421.4,0.82568]
[1751044272723,2.21824,2421.6,2421.4,0.82568]
[1751044273328,1.4191,2421.7,2421.3,25.826]
[1751044273632,0.7005,2421.7,2421.6,2.89011]
[1751044273929,9.71275,2422.1,2421.6,2.0645]
[1751044274121,8.8873,2422.1,2422.0,0.82548]
[1751044275129,8.2037,2422.1,2422.0,0.82548]
[1751044275630,0.82548,2422.0,2421.9,0.82549]
[1751044275931,9.02916,2422.1,2422.0,0.82548]
[1751044276333,8.2037,2422.1,2422.0,0.82548]
[1751044276932,8.2037,2422.1,2422.0,2.88998]
[1751044278033,9.02914,2422.1,2422.0,2.88998]
[1751044278532,9.02914,2422.1,2422.0,2.0645]
[1751044278735,0.82551,2421.9,2421.8,0.6642]
[1751044279038,4.9959,2422.1,2421.9,2.0645]
[1751044279333,0.82548,2422.0,2421.9,2.0645]
[1751044279534,0.82554,2421.8,2421.7,3.2078]
[1751044279734,0.82554,2421.8,2421.7,0.82557]
[1751044279931,0.82554,2421.8,2421.7,2.89007]
[1751044280429,0.82554,2421.8,2421.7,2.0645]
[1751044280837,1.55064,2421.9,2421.8,0.82554]
[1751044281134,1.55064,2421.9,2421.8,2.89004]
[1751044282132,1.55064,2421.9,2421.8,2.0645]
[1751044283239,1.55064,2421.9,2421.8,2.89004]
[1751044283540,1.55064,2421.9,2421.8,2.0645]
[1751044283835,1.55064,2421.9,2421.8,2.89004]
[1751044284438,0.7251,2421.9,2421.8,2.89004]
[1751044285033,4.9959,2422.1,2422.0,0.82548]
[1751044285239,0.8254,2422.3,2422.2,0.82541]
[1751044285440,0.82536,2422.4,2422.3,0.82537]
[1751044285635,4.75153,2422.5,2422.4,0.82534]
[1751044285841,3.07174,2422.4,2422.3,2.88985]
[1751044286244,3.07174,2422.4,2422.3,0.82535]
[1751044286541,0.82539,2422.3,2422.2,0.82539]
[1751044287042,2.2464,2422.4,2422.3,0.82537]
[1751044287233,2.2464,2422.4,2422.3,2.88987]
[1751044287537,2.2464,2422.4,2422.3,0.82537]
[1751044287836,3.07176,2422.4,2422.2,0.82539]
[1751044288142,3.07176,2422.4,2422.3,2.88987]
[1751044288736,2.2464,2422.4,2422.3,2.88987]
[1751044289641,3.07174,2422.4,2422.3,2.88987]
[1751044290936,3.07174,2422.4,2422.3,2.0645]
[1751044291545,12.85207841,2422.4,2421.8,3.2078]
[1751044291739,0.82548,2422.1,2422.0,2.0645]
[1751044291940,0.82548,2422.1,2422.0,2.88998]
[1751044292246,1.53078,2422.1,2422.0,2.88998]
[1751044295041,0.7053,2422.1,2422.0,2.88998]
[1751044295441,2.2464,2422.4,2422.0,2.0645]
[1751044295641,0.82542,2422.2,2422.1,0.82542]
[1751044296041,0.82542,2422.2,2422.1,2.88992]
[1751044297947,0.82542,2422.2,2422.1,2.0645]
[1751044298244,2.03535755,2422.2,2422.1,2.88994]
[1751044299549,2.03535755,2422.2,2422.1,2.0645]
[1751044300547,1.20993755,2422.2,2422.1,2.88994]
[1751044300850,0.1156,2422.3,2422.2,0.82541]
[1751044301050,3.2078,2422.5,2422.4,0.82534]
[1751044301347,4.41811385,2422.5,2422.4,2.88984]
[1751044301649,3.49991385,2422.5,2422.4,2.88984]
[1751044301854,3.49991385,2422.5,2422.4,4.25604]
[1751044302156,3.49991385,2422.5,2422.4,7.46384]
[1751044302451,2.2896,2422.5,2422.4,11.27921207]
[1751044304447,2.2896,2422.5,2422.4,7.46384]
[1751044306547,1.96391329,2422.5,2422.4,7.46384]
[1751044306749,1.96391329,2422.5,2422.4,12.46384]
[1751044307444,0.7163,2422.9,2422.8,0.8252]
[1751044307641,0.7163,2422.9,2422.8,9.7547]
[1751044307853,1.92577194,2422.9,2422.8,9.7547]
[1751044308355,5.87967194,2422.9,2422.8,9.7547]
[1751044308548,5.87967194,2422.9,2422.8,10.4387]
[1751044308750,4.6702,2422.9,2422.8,10.4387]
[1751044309955,5.49537,2422.9,2422.8,2.0645]
[1751044311156,4.6702,2422.9,2422.8,2.8897]
[1751044311652,6.23157,2422.9,2422.8,2.8897]
[1751044312649,0.8252,2422.8,2422.7,35.8608]
[1751044312850,2.2794,2422.8,2422.7,35.8608]
[1751044313156,2.2794,2422.8,2422.7,3.2078]
[1751044313453,0.82526,2422.7,2422.6,0.82527]
[1751044313645,2.27946,2422.7,2422.6,0.82527]
[1751044313846,2.27946,2422.7,2422.5,33.47729]
[1751044314042,0.82532,2422.5,2422.4,6.864]
[1751044314253,0.82532,2422.5,2422.4,8.9285]